fUSD/lending_fUSD_20260205
["ID","MTS","AMOUNT","RATE_DAILY","PERIOD"]
[404565846,1770298239997,-500.0,0.00011789,2]
[404565848,1770298240006,-1000.0,0.00011826,2]
[404565850,1770298240015,-10000.0,0.00011826,2]
[404565852,1770298240025,-200.0,0.00011839,2]
[404565854,1770298240034,-500.0,0.00011844,2]
[404565856,1770298240044,-500.0,0.00011899,2]
[404565858,1770298240054,-2900.0,0.000119,4]
[404565860,1770298240064,-23425.62096349,0.00011944,2]
[404565862,1770298240074,-1856.90952289,0.00011944,2]
[404565864,1770298240084,-500.0,0.00011954,2]
[404565866,1770298240094,-193.0,0.00011978,2]
[404565868,1770298240103,-3292.0,0.00011978,2]
[404565870,1770298240112,-166.66,0.00011982,2]
[404565872,1770298240121,-175.65,0.00012,2]
[404565874,1770298240131,-230.01386771,0.00012009,2]
[404565876,1770298240141,-200.0,0.00012029,2]
[404565878,1770298240152,-255.0,0.00012252,2]
[404565880,1770298240162,-195.0,0.00012306,2]
[404565882,1770298240173,-3162.01327408,0.00012316,2]
[404565884,1770298240183,-8344.60305822,0.00012316,2]
[404565886,1770298240193,-14720.8689121,0.00012316,2]
[404565888,1770298240210,-166.66,0.00012364,2]
[404565890,1770298240222,-200.0,0.00012387,2]
[404565892,1770298240232,-171.90669662,0.00012482,2]
[404565894,1770298240241,-200.0,0.00012577,2]
[404565896,1770298240251,-23425.62096349,0.00012689,2]
[404565898,1770298240262,-1856.90952289,0.00012689,2]
[404565900,1770298240271,-166.66,0.00012747,2]
[404565902,1770298240281,-1337.24149466,0.00012841,2]
[404565904,1770298240291,-200.0,0.00012935,2]
[404565906,1770298240300,-271.59702332,0.00013024,2]
[404565908,1770298240310,-200.0,0.00013125,2]
[404565910,1770298240320,-166.66,0.0001313,2]
[404565912,1770298240330,-4609.0,0.00013175,2]
[404565914,1770298240339,-150.0,0.00013207,2]
[404565916,1770298240349,-433.0,0.00013405,2]
[404565918,1770298240359,-23425.62096349,0.00013433,2]
[404565920,1770298240369,-1856.90952289,0.00013433,2]
[404565922,1770298240379,-200.0,0.00013483,2]
[404565924,1770298240388,-166.66,0.00013513,2]
[404565926,1770298240398,-171.90669662,0.00013565,2]
[404565928,1770298240407,-200.0,0.00013673,2]
[404565930,1770298240417,-152.0,0.00013681,3]
[404565932,1770298240426,-606.0,0.00013781,2]
[404565934,1770298240435,-200.0,0.00014031,2]
[404565936,1770298240444,-23425.62096349,0.00014178,2]
[404565939,1770298240464,-1856.90952289,0.00014178,2]
[404565941,1770298240473,-500.0,0.0001422,2]
[404565943,1770298240482,-200.0,0.00014221,2]
[404565945,1770298240492,-3445.44,0.00014417,2]
[404565947,1770298240502,-485.87601375,0.00014443,2]
[404565949,1770298240511,-151.0,0.00014443,2]
[404565951,1770298240520,-485.87601375,0.00014443,2]
[404565953,1770298240530,-151.0,0.00014443,2]
[404565955,1770298240540,-400.15644344,0.00014443,2]
[404565957,1770298240550,-1418.36,0.0001447,2]
[404565959,1770298240560,-500.0,0.00014483,2]
[404565961,1770298240570,-500.0,0.00014483,2]
[404565963,1770298240580,-500.0,0.00014483,2]
[404565965,1770298240590,-500.0,0.00014483,2]
[404565967,1770298240599,-500.0,0.00014483,2]
[404565969,1770298240609,-500.0,0.00014483,2]
[404565972,1770298240619,-500.0,0.00014483,2]
[404565974,1770298240628,-500.0,0.00014483,2]
[404565976,1770298240638,-500.0,0.00014483,2]
[404565978,1770298240650,-500.0,0.00014483,2]
[404565980,1770298240667,-500.0,0.00014483,2]
[404565982,1770298240677,-448.31,0.00014483,2]
[404565984,1770298240687,-1337.24149466,0.00014483,2]
[404565987,1770298240700,-398.0,0.00014493,2]
[404565989,1770298240710,-1418.36,0.00014496,2]
[404565991,1770298240719,-1418.36,0.00014522,2]
[404565993,1770298240728,-1418.36,0.00014548,2]
[404565995,1770298240738,-169.4141922,0.0001455,2]
[404565997,1770298240747,-893.29513249,0.0001455,2]
[404565999,1770298240757,-479.436717,0.00014551,7]
[404566001,1770298240767,-1418.36,0.00014575,2]
[404566003,1770298240777,-200.0,0.00014579,2]
[404566005,1770298240786,-1418.36,0.00014601,2]
[404566007,1770298240796,-1418.36,0.00014627,2]
[404566009,1770298240806,-271.59702332,0.00014649,2]
[404566011,1770298240815,-171.90669662,0.00014649,2]
[404566013,1770298240825,-1418.36,0.00014653,2]
[404566015,1770298240835,-662.0,0.00014659,2]
[404566018,1770298240845,-1418.36,0.0001468,2]
[404566020,1770298240855,-1418.36,0.00014706,2]
[404566022,1770298240865,-1000.0,0.00014711,2]
[404566024,1770298240875,-1418.36,0.00014732,2]
[404566026,1770298240884,-1418.36,0.00014759,2]
[404566028,1770298240893,-277.63511856,0.00014759,2]
[404566030,1770298240903,-1024.86760112,0.00014759,2]
[404566032,1770298240912,-345.91474539,0.00014759,2]
[404566034,1770298240921,-1338.10693468,0.00014759,2]
[404566036,1770298240931,-200.0,0.00014769,2]
[404566038,1770298240940,-23425.62096349,0.00014922,2]
[404566040,1770298240955,-1856.90952289,0.00014922,2]
[404566042,1770298240966,-250.0,0.00015,2]
[404566044,1770298240976,-29759.72262329,0.00015,2]
[404566046,1770298240985,-418.21759378,0.00015,2]
[404566048,1770298240995,-152.62,0.00015,2]
[404566050,1770298241004,-948.7604926,0.00015029,2]
[404566052,1770298241014,-450.32,0.00015068,2]
[404566054,1770298241024,-160.0,0.00015075,2]
[404566056,1770298241035,-200.0,0.00015127,2]
[404566060,1770298241059,-1517.64,0.000153,2]
[404566062,1770298241072,-22021.53949517,0.00015316,2]
[404566064,1770298241083,-29795.9211,0.00015316,2]
[404566066,1770298241093,-200.0,0.00015317,2]
[404566069,1770298241104,-508.83519453,0.000154,2]
[404566071,1770298241114,-152.01739561,0.00015437,2]
[404566073,1770298241125,-500.0,0.00015516,2]
[404566075,1770298241140,-152.0,0.00015625,4]
[404566077,1770298241150,-23425.62096349,0.00015667,2]
[404566079,1770298241161,-1856.90952289,0.00015667,2]
[404566081,1770298241171,-200.0,0.00015675,2]
[404566083,1770298241183,-171.90669662,0.00015733,2]
[404566085,1770298241193,-180.54,0.00015745,2]
[404566088,1770298241209,-2046.60264728,0.00015807,2]
[404566090,1770298241220,-200.0,0.00015865,2]
[404566092,1770298241230,-948.7604926,0.00015986,2]
[404566094,1770298241241,-957.19260386,0.00016,2]
[404566096,1770298241251,-320.47368523,0.00016,2]
[404566099,1770298241262,-5956.53345956,0.00016,2]
[404566101,1770298241272,-167.47,0.00016017,2]
[404566103,1770298241282,-152.01739561,0.00016139,2]
[404566105,1770298241292,-5000.00667727,0.000162,5]
[404566107,1770298241302,-200.0,0.00016223,2]
[404566109,1770298241313,-271.59702332,0.00016275,2]
[404566111,1770298241323,-656.0,0.00016406,2]
[404566114,1770298241333,-23425.62096349,0.00016411,2]
[404566116,1770298241344,-1856.90952289,0.00016411,2]
[404566118,1770298241354,-200.0,0.00016413,2]
[404566120,1770298241364,-450.32,0.00016438,2]
[404566122,1770298241374,-656.0,0.00016445,2]
[404566124,1770298241384,-1000.0,0.00016549,2]
[404566126,1770298241394,-200.0,0.00016771,2]
[404566129,1770298241409,-171.90669662,0.00016816,2]
[404566131,1770298241419,-152.01739561,0.0001684,2]
[404566133,1770298241429,-836.0,0.00016852,2]
[404566135,1770298241452,-656.0,0.00016856,2]
[404566137,1770298241463,-305.84785682,0.00016914,2]
[404566139,1770298241473,-836.0,0.00016918,2]
[404566142,1770298241484,-180.54,0.00016941,2]
[404566144,1770298241494,-948.7604926,0.00016943,2]
[404566146,1770298241504,-500.0,0.00016959,2]
[404566148,1770298241514,-200.0,0.00016961,2]
[404566150,1770298241524,-836.0,0.00016999,2]
[404566152,1770298241534,-656.0,0.00016999,2]
[404566154,1770298241545,-300.0,0.00017,2]
[404566156,1770298241556,-2034.15123261,0.00017,2]
[404566158,1770298241567,-500.0,0.00017,2]
[404566161,1770298241577,-836.0,0.00017057,2]
[404566163,1770298241588,-322.6107,0.00017099,2]
[404566165,1770298241598,-176.28122483,0.00017099,2]
[404566167,1770298241608,-721.12765535,0.00017099,2]
[404566169,1770298241618,-209.40437684,0.00017099,2]
[404566171,1770298241628,-200.0,0.00017099,2]
[404566173,1770298241638,-1428.38747117,0.00017099,2]
[404566175,1770298241648,-2000.0,0.00017099,2]
[404566177,1770298241659,-2000.0,0.00017099,2]
[404566180,1770298241670,-2000.0,0.00017099,2]
[404566182,1770298241680,-2000.0,0.00017099,2]
[404566184,1770298241691,-2000.0,0.00017099,2]
[404566186,1770298241706,-2000.0,0.00017099,2]
[404566188,1770298241716,-2000.0,0.00017099,2]
[404566190,1770298241727,-2000.0,0.00017099,2]
[404566192,1770298241737,-2000.0,0.00017099,2]
[404566194,1770298241747,-2000.0,0.00017099,2]
[404566196,1770298241758,-2000.0,0.00017099,2]
[404566198,1770298241768,-174.61919141,0.00017099,2]
[404566199,1770298241783,-209.40437684,0.00017099,2]
[404566200,1770298241794,-578.20924308,0.00017099,2]
[404566201,1770298241805,-250.0,0.00017099,2]
[404566202,1770298241817,-250.0,0.00017099,2]
[404566203,1770298241827,-250.0,0.00017099,2]
[404566204,1770298241838,-199.92628631,0.00017099,2]
[404566205,1770298241848,-277.35679052,0.00017099,2]
[404566206,1770298241858,-5000.0,0.00017099,2]
[404566207,1770298241868,-500.0,0.00017099,2]
[404566209,1770298241878,-500.0,0.00017099,2]
[404566210,1770298241889,-500.0,0.00017099,2]
[404566211,1770298241899,-500.0,0.00017099,2]
[404566212,1770298241910,-500.0,0.00017099,2]
[404566213,1770298241921,-500.0,0.00017099,2]
[404566214,1770298241931,-500.0,0.00017099,2]
[404566215,1770298241942,-250.0,0.00017099,2]
[404566216,1770298241956,-250.0,0.00017099,2]
[404566217,1770298241967,-209.40437684,0.00017099,2]
[404566218,1770298241978,-250.0,0.00017099,2]
[404566219,1770298241989,-250.0,0.00017099,2]
[404566220,1770298241999,-250.0,0.00017099,2]
[404566221,1770298242010,-445.7744494,0.00017099,2]
[404566222,1770298242020,-250.0,0.00017099,2]
[404566223,1770298242031,-250.0,0.00017099,2]
[404566224,1770298242041,-500.0,0.00017099,2]
[404566225,1770298242052,-494.97768813,0.00017099,2]
[404566226,1770298242063,-250.0,0.00017099,2]
[404566227,1770298242073,-512.54322178,0.00017099,2]
[404566228,1770298242083,-250.0,0.00017099,2]
[404566229,1770298242095,-250.0,0.00017099,2]
[404566230,1770298242106,-250.0,0.00017099,2]
[404566231,1770298242116,-250.0,0.00017099,2]
[404566232,1770298242127,-743.50770149,0.00017099,2]
[404566233,1770298242137,-250.0,0.00017099,2]
[404566234,1770298242150,-250.0,0.00017099,2]
[404566235,1770298242160,-250.0,0.00017099,2]
[404566236,1770298242171,-250.0,0.00017099,2]
[404566237,1770298242181,-250.0,0.00017099,2]
[404566238,1770298242190,-250.0,0.00017099,2]
[404566239,1770298242203,-250.0,0.00017099,2]
[404566240,1770298242213,-250.0,0.00017099,2]
[404566241,1770298242224,-250.0,0.00017099,2]
[404566242,1770298242234,-250.0,0.00017099,2]
[404566243,1770298242244,-1317.0,0.000171,2]
[404566244,1770298242254,-2466.995,0.000171,2]
[404566245,1770298242265,-3482.0,0.000171,2]
[404566246,1770298242276,-1411.0,0.000171,2]
[404566247,1770298242287,-1506.0,0.000171,2]
[404566248,1770298242297,-836.0,0.00017148,2]
[404566249,1770298242308,-217.15233878,0.00017154,2]
[404566250,1770298242318,-2396.06969475,0.00017156,2]
[404566251,1770298242933,-2774.8928558,0.00017156,2]
[404566252,1770298242944,-4791.34137138,0.00017156,2]
[404566254,1770298243430,-107.3932254,0.00011232,2]
[404566255,1770298243442,-392.6067746,0.00011232,2]
[404566256,1770298243456,-394.73975832,0.0001455,2]
[404566257,1770298243466,-13463.31704156,0.00017156,2]
[404566258,1770298243480,-1856.90952289,0.00017156,2]
[404566259,1770298243490,-836.0,0.00017173,2]
[404566260,1770298243500,-1004.24833384,0.00017177,5]
[404566261,1770298243510,-225.18697532,0.00017209,2]
[404566262,1770298243520,-1000.0,0.0001726,2]
[404566263,1770298243530,-233.51889341,0.00017264,2]
[404566264,1770298243539,-1271.0,0.0001731,2]
[404566265,1770298243549,-150.0,0.0001731,2]
[404566266,1770298243559,-1205.0,0.0001731,2]
[404566267,1770298243570,-917.0,0.0001731,2]
[404566268,1770298243579,-242.15909246,0.00017319,2]
[404566269,1770298243590,-200.0,0.00017319,2]
[404566270,1770298243600,-167.47,0.00017324,2]
[404566271,1770298243610,-836.0,0.00017335,2]
[404566272,1770298243620,-524.0,0.00017342,2]
[404566273,1770298243630,-251.11897888,0.00017374,2]
[404566274,1770298243640,-500.0,0.000174,6]
[404566275,1770298243649,-260.4103811,0.00017429,2]
[404566276,1770298243660,-836.0,0.00017465,2]
[404566277,1770298243673,-524.0,0.0001747,2]
[404566278,1770298243683,-270.0455652,0.00017484,2]
[404566279,1770298243692,-500.0,0.000175,6]
[404566280,1770298243705,-200.0,0.00017509,2]
[404566281,1770298243715,-1000.0,0.00017534,2]
[404566282,1770298243725,-280.03725112,0.00017539,2]
[404566283,1770298243735,-152.01739561,0.00017542,2]
[404566284,1770298243744,-773.71,0.00017564,2]
[404566285,1770298243754,-152.0,0.00017569,5]
[404566286,1770298243763,-290.39862941,0.00017594,2]
[404566287,1770298243773,-524.0,0.00017595,2]
[404566288,1770298243783,-500.0,0.000176,6]
[404566289,1770298243793,-524.0,0.00017601,2]
[404566290,1770298243803,-217.15233878,0.00017647,2]
[404566291,1770298243813,-200.0,0.00017647,2]
[404566292,1770298243823,-1481.23780761,0.00017647,2]
[404566293,1770298243832,-181.08010149,0.00017647,2]
[404566294,1770298243841,-217.15233878,0.00017647,2]
[404566295,1770298243851,-287.61899177,0.00017647,2]
[404566296,1770298243861,-5000.0,0.00017647,2]
[404566297,1770298243871,-771.01748645,0.00017647,2]
[404566298,1770298243880,-301.1433787,0.00017649,2]
[404566299,1770298243890,-500.0,0.000177,6]
[404566300,1770298243903,-869.18,0.00017761,2]
[404566301,1770298243912,-665.787215,0.00017765,7]
[404566302,1770298243922,-1248.0,0.000178,6]
[404566303,1770298243932,-436.0,0.00017808,2]
[404566304,1770298243942,-1000.0,0.00017808,2]
[404566305,1770298243955,-393.12626,0.0001782,2]
[404566306,1770298243965,-393.12626,0.0001782,2]
[404566307,1770298243975,-524.0,0.00017827,2]
[404566308,1770298243986,-200.0,0.00017855,2]
[404566309,1770298243995,-500.0,0.00017856,2]
[404566310,1770298244005,-500.0,0.00017856,2]
[404566311,1770298244016,-200.0,0.00017856,2]
[404566312,1770298244026,-436.0,0.00017863,2]
[404566313,1770298244037,-200.0,0.00017867,2]
[404566314,1770298244047,-25000.0,0.00017891,3]
[404566315,1770298244057,-160.0,0.00017891,3]
[404566316,1770298244067,-25000.0,0.000179,3]
[404566317,1770298244078,-12968.13672429,0.000179,3]
[404566318,1770298244087,-271.59702332,0.000179,2]
[404566319,1770298244097,-171.90669662,0.000179,2]
[404566320,1770298244107,-169.4141922,0.000179,2]
[404566321,1770298244117,-23425.62096349,0.000179,2]
[404566322,1770298244127,-948.7604926,0.000179,2]
[404566323,1770298244137,-1856.90952289,0.000179,2]
[404566324,1770298244152,-500.0,0.000179,2]
[404566325,1770298244162,-893.29513249,0.000179,2]
[404566326,1770298244172,-411.07033882,0.000179,2]
[404566327,1770298244183,-15462.0,0.000179,2]
[404566328,1770298244194,-436.0,0.00017918,2]
[404566329,1770298244214,-436.0,0.00017972,2]
[404566330,1770298244224,-500.0,0.00017973,2]
[404566331,1770298244234,-309.44398841,0.00017973,2]
[404566332,1770298244244,-500.0,0.00017973,2]
[404566333,1770298244254,-500.0,0.00017973,2]
[404566334,1770298244263,-500.0,0.00017973,2]
[404566335,1770298244273,-500.0,0.00017973,2]
[404566336,1770298244283,-500.0,0.00017973,2]
[404566337,1770298244307,-500.0,0.00017973,2]
[404566338,1770298244322,-500.0,0.00017973,2]
[404566339,1770298244333,-500.0,0.00017973,2]
[404566340,1770298244344,-500.0,0.00017973,2]
[404566341,1770298244356,-500.0,0.00017973,2]
[404566342,1770298244367,-500.0,0.00017973,2]
[404566343,1770298244377,-500.0,0.00017973,2]
[404566344,1770298244388,-500.0,0.00017973,2]
[404566345,1770298244398,-520.97702983,0.00017973,2]
[404566346,1770298244409,-500.0,0.00017973,2]
[404566347,1770298244419,-500.0,0.00017973,2]
[404566348,1770298244429,-500.0,0.00017973,2]
[404566349,1770298244439,-500.0,0.00017973,2]
[404566350,1770298244449,-500.0,0.00017973,2]
[404566351,1770298244469,-561.5530591,0.00017973,2]
[404566352,1770298244478,-500.0,0.00017973,2]
[404566353,1770298244488,-160.11845722,0.00017973,2]
[404566354,1770298244498,-500.0,0.00017973,2]
[404566355,1770298244508,-500.0,0.00017973,2]
[404566356,1770298244518,-500.0,0.00017973,2]
[404566357,1770298244528,-500.0,0.00017973,2]
[404566358,1770298244537,-500.0,0.00017973,2]
[404566359,1770298244547,-500.0,0.00017973,2]
[404566360,1770298244558,-500.0,0.00017973,2]
[404566361,1770298244568,-500.0,0.00017973,2]
[404566362,1770298244579,-500.0,0.00017973,2]
[404566363,1770298244590,-500.0,0.00017973,2]
[404566364,1770298244600,-500.0,0.00017973,2]
[404566365,1770298244611,-500.0,0.00017973,2]
[404566366,1770298244621,-500.0,0.00017973,2]
[404566367,1770298244631,-500.0,0.00017973,2]
[404566368,1770298244641,-500.0,0.00017973,2]
[404566369,1770298244651,-500.0,0.00017973,2]
[404566370,1770298244667,-500.0,0.00017973,2]
[404566371,1770298244677,-500.0,0.00017973,2]
[404566372,1770298244688,-500.0,0.00017982,2]
[404566373,1770298244699,-117807.58644161,0.0001799,3]
[404566374,1770298244717,-35113.88286834,0.0001799,2]
[404566375,1770298244727,-6358.9877984,0.00017991,2]
[404566376,1770298244738,-46484.919482,0.00017991,2]
[404566377,1770298244748,-6677.0223997,0.00017991,2]
[404566378,1770298244759,-85088.6595221,0.00017991,2]
[404566379,1770298244769,-2131.5184918,0.00017991,2]
[404566380,1770298244779,-42124.1649329,0.00017992,2]
[404566381,1770298244789,-300.0,0.00017999,2]
[404566382,1770298244799,-305.85808466,0.00017999,2]
[404566383,1770298244809,-300.0,0.00017999,2]
[404566384,1770298244820,-1004.24833386,0.00017999,5]
[404566385,1770298244830,-300.0,0.00017999,2]
[404566386,1770298244840,-666.0,0.00017999,2]
[404566387,1770298244850,-300.0,0.00017999,2]
[404566388,1770298244860,-666.0,0.00017999,2]
[404566389,1770298244870,-300.0,0.00017999,2]
[404566390,1770298244881,-300.0,0.00017999,2]
[404566391,1770298244891,-150.0,0.00017999,2]
[404566392,1770298244902,-150.0,0.00017999,2]
[404566393,1770298244912,-231.00018382,0.00017999,2]
[404566394,1770298244922,-500.0,0.00017999,2]
[404566395,1770298244933,-319.6181717,0.00017999,2]
[404566396,1770298244943,-584.78413536,0.00017999,2]
[404566397,1770298244959,-500.0,0.00017999,2]
[404566398,1770298244970,-500.0,0.00017999,2]
[404566399,1770298244980,-238.59519833,0.00017999,2]
[404566400,1770298244991,-500.0,0.00017999,2]
[404566401,1770298245001,-500.0,0.00017999,2]
[404566402,1770298245012,-284.80146065,0.00018,2]
[404566403,1770298245027,-5262800.36629526,0.00018,2]
[404566404,1770298245050,-498.34169665,0.00018,2]
[404566405,1770298245068,-343.95000001,0.00018,2]
[404566407,1770298246292,-394.73975832,0.000179,2]
[404566408,1770298246302,-5392.66956421,0.00018,2]
[404566409,1770298246491,-3666.99999984,0.00018,2]
[404566413,1770298315621,500.0,8.9e-05,2]
[404566414,1770298336301,88904.24160978,8.9e-05,2]
[404566415,1770298336337,1500.0,8.9e-05,2]
[404566417,1770298369257,1115.83148205,8.899e-05,3]
[404566418,1770298381488,300.0,8.7e-05,3]
[404566419,1770298383610,600.0,8.8e-05,3]
[404566420,1770298385711,900.0,8.9e-05,3]
[404566421,1770298388013,1200.0,9e-05,3]
[404566425,1770298487547,350.0,0.00021,30]
[404566435,1770298598638,200.0,0.00021,120]
[404566436,1770298637759,160.0,0.00021,120]
[404566455,1770299431429,-200.0,8.437e-05,2]
[404566456,1770299431439,-300.0,8.521e-05,2]
[404566457,1770299431449,-300.0,8.521e-05,2]
[404566458,1770299431459,-300.0,8.521e-05,2]
[404566459,1770299431469,-1200.0,8.521e-05,2]
[404566460,1770299431479,-221.0,8.521e-05,2]
[404566461,1770299431492,-250.0,8.521e-05,2]
[404566462,1770299431502,-6017.38961,8.522e-05,2]
[404566463,1770299431518,-699.36702806,8.522e-05,2]
[404566464,1770299431531,-2491.59768231,8.522e-05,2]
[404566465,1770299431542,-2107.28432845,8.522e-05,2]
[404566466,1770299431572,-951.09995283,8.522e-05,2]
[404566467,1770299431590,-869.56,8.522e-05,2]
[404566468,1770299431602,-22934.24384819,8.522e-05,2]
[404566469,1770299431612,-500.0,8.522e-05,2]
[404566470,1770299431622,-150.0,8.522e-05,2]
[404566471,1770299431633,-265.30082317,8.522e-05,2]
[404566473,1770299431643,-500.0,8.522e-05,2]
[404566475,1770299431652,-500.0,8.522e-05,2]
[404566477,1770299431663,-500.0,8.522e-05,2]
[404566479,1770299431673,-500.0,8.522e-05,2]
[404566480,1770299431684,-500.0,8.522e-05,2]
[404566482,1770299431694,-500.0,8.522e-05,2]
[404566484,1770299431703,-500.0,8.522e-05,2]
[404566486,1770299431713,-500.0,8.522e-05,2]
[404566488,1770299431722,-500.0,8.522e-05,2]
[404566491,1770299431732,-500.0,8.522e-05,2]
[404566493,1770299431741,-500.0,8.522e-05,2]
[404566496,1770299431751,-500.0,8.522e-05,2]
[404566498,1770299431760,-500.0,8.522e-05,2]
[404566499,1770299431770,-500.0,8.522e-05,2]
[404566500,1770299431779,-500.0,8.522e-05,2]
[404566501,1770299431788,-500.0,8.522e-05,2]
[404566502,1770299431797,-500.0,8.522e-05,2]
[404566503,1770299431806,-500.0,8.522e-05,2]
[404566504,1770299431817,-500.0,8.522e-05,2]
[404566505,1770299431827,-500.0,8.522e-05,2]
[404566506,1770299431836,-500.0,8.522e-05,2]
[404566507,1770299431846,-500.0,8.522e-05,2]
[404566508,1770299431856,-500.0,8.522e-05,2]
[404566509,1770299431865,-500.0,8.522e-05,2]
[404566510,1770299431875,-500.0,8.522e-05,2]
[404566511,1770299431886,-500.0,8.522e-05,2]
[404566512,1770299431896,-500.0,8.522e-05,2]
[404566513,1770299431906,-500.0,8.522e-05,2]
[404566514,1770299431916,-500.0,8.522e-05,2]
[404566515,1770299431926,-500.0,8.522e-05,2]
[404566516,1770299431935,-500.0,8.522e-05,2]
[404566517,1770299431944,-500.0,8.522e-05,2]
[404566518,1770299431953,-500.0,8.522e-05,2]
[404566519,1770299431964,-500.0,8.522e-05,2]
[404566520,1770299431974,-198.50326194,8.522e-05,2]
[404566521,1770299432049,-301.49673806,8.522e-05,2]
[404566522,1770299432059,-293.12121859,8.522e-05,2]
[404566523,1770299432069,-206.87878141,8.522e-05,2]
[404566524,1770299432079,-64.53564659,8.522e-05,2]
[404566525,1770299432090,-521.69081679,8.522e-05,2]
[404566526,1770299432100,-500.0,8.522e-05,2]
[404566527,1770299432109,-500.0,8.522e-05,2]
[404566528,1770299432119,-500.0,8.522e-05,2]
[404566529,1770299432127,-500.0,8.522e-05,2]
[404566530,1770299432137,-500.0,8.522e-05,2]
[404566531,1770299432147,-500.0,8.522e-05,2]
[404566532,1770299432156,-500.0,8.522e-05,2]
[404566533,1770299432166,-500.0,8.522e-05,2]
[404566534,1770299432175,-500.0,8.522e-05,2]
[404566535,1770299432184,-500.0,8.522e-05,2]
[404566536,1770299432194,-500.0,8.522e-05,2]
[404566537,1770299432203,-500.0,8.522e-05,2]
[404566538,1770299432212,-500.0,8.522e-05,2]
[404566539,1770299432222,-500.0,8.522e-05,2]
[404566540,1770299432231,-150.00000001,8.522e-05,2]
[404566541,1770299432241,-500.0,8.522e-05,2]
[404566542,1770299432251,-500.0,8.522e-05,2]
[404566543,1770299432261,-500.0,8.522e-05,2]
[404566544,1770299432271,-500.0,8.522e-05,2]
[404566545,1770299432281,-500.0,8.522e-05,2]
[404566546,1770299432290,-500.0,8.522e-05,2]
[404566547,1770299432299,-500.0,8.522e-05,2]
[404566548,1770299432309,-500.0,8.522e-05,2]
[404566549,1770299432318,-500.0,8.522e-05,2]
[404566550,1770299432327,-500.0,8.522e-05,2]
[404566551,1770299432336,-500.0,8.522e-05,2]
[404566552,1770299432345,-500.0,8.522e-05,2]
[404566553,1770299432354,-500.0,8.522e-05,2]
[404566554,1770299432364,-500.0,8.522e-05,2]
[404566555,1770299432373,-500.0,8.522e-05,2]
[404566556,1770299432383,-500.0,8.522e-05,2]
[404566557,1770299432393,-500.0,8.522e-05,2]
[404566558,1770299432403,-500.0,8.522e-05,2]
[404566559,1770299432412,-500.0,8.522e-05,2]
[404566560,1770299432422,-500.0,8.522e-05,2]
[404566561,1770299432675,-500.0,8.522e-05,2]
[404566562,1770299432685,-500.0,8.522e-05,2]
[404566563,1770299432695,-500.0,8.522e-05,2]
[404566564,1770299432705,-500.0,8.522e-05,2]
[404566565,1770299432714,-500.0,8.522e-05,2]
[404566566,1770299432723,-500.0,8.522e-05,2]
[404566567,1770299432735,-500.0,8.522e-05,2]
[404566568,1770299432744,-500.0,8.522e-05,2]
[404566569,1770299432754,-8824.59071081,8.523e-05,2]
[404566570,1770299432767,-462.1300956,8.523e-05,2]
[404566571,1770299432778,-1075.43,8.523e-05,2]
[404566576,1770299437510,-557300.71313954,8.523e-05,2]
[404566577,1770299437521,-1134.8726,8.523e-05,2]
[404566578,1770299437574,-3483.55,8.523e-05,2]
[404566579,1770299437631,-585.25679491,8.523e-05,2]
[404566580,1770299437647,-1848.46225239,8.523e-05,2]
[404566665,1770299439793,-378.66,8.523e-05,2]
[404566666,1770299439805,-2924906.33440675,8.523e-05,2]
[404566667,1770299439814,-300.0,8.621e-05,2]